fUST/lending_fUST_20250724
["ID","MTS","AMOUNT","RATE_DAILY","PERIOD"]
[374562670,1753355447546,-460.0,0.00021643,2]
[374562671,1753355447556,-2974.94,0.00021643,2]
[374562672,1753355447565,-460.0,0.00021643,2]
[374562673,1753355447575,-460.0,0.00021643,2]
[374562674,1753355447585,-838.22,0.00021643,2]
[374562675,1753355447595,-460.0,0.00021643,2]
[374562676,1753355447604,-460.0,0.00021643,2]
[374562677,1753355447614,-460.0,0.00021643,2]
[374562678,1753355447623,-512.48422645,0.00021643,2]
[374562679,1753355447633,-460.0,0.00021643,2]
[374562680,1753355447642,-460.0,0.00021643,2]
[374562681,1753355447653,-460.0,0.00021643,2]
[374562682,1753355447662,-1135.29,0.00021643,2]
[374562683,1753355447672,-2559.0,0.00021643,2]
[374562684,1753355447682,-460.0,0.00021643,2]
[374562685,1753355447691,-460.0,0.00021643,2]
[374562686,1753355447701,-654.47,0.00021643,2]
[374562687,1753355447710,-460.0,0.00021643,2]
[374562688,1753355447720,-764.33,0.00021643,2]
[374562689,1753355447730,-460.0,0.00021643,2]
[374562690,1753355447739,-479.99,0.00021643,2]
[374562691,1753355447751,-801.24,0.00021643,2]
[374562692,1753355447771,-460.0,0.00021643,2]
[374562693,1753355447780,-354.41743296,0.00021643,2]
[374562694,1753355447791,-460.0,0.00021643,2]
[374562695,1753355447800,-460.0,0.00021643,2]
[374562696,1753355447810,-460.0,0.00021643,2]
[374562697,1753355447819,-460.0,0.00021643,2]
[374562698,1753355447829,-460.0,0.00021643,2]
[374562699,1753355447840,-583.1,0.00021643,2]
[374562700,1753355447849,-956.43,0.00021643,2]
[374562701,1753355447859,-460.0,0.00021643,2]
[374562702,1753355447868,-460.0,0.00021643,2]
[374562703,1753355447878,-460.0,0.00021643,2]
[374562704,1753355447887,-460.0,0.00021643,2]
[374562705,1753355447898,-460.0,0.00021643,2]
[374562706,1753355447908,-460.0,0.00021643,2]
[374562707,1753355447916,-460.0,0.00021643,2]
[374562708,1753355447926,-460.0,0.00021643,2]
[374562709,1753355447936,-2105.43,0.00021643,2]
[374562710,1753355447946,-460.0,0.00021643,2]
[374562711,1753355447956,-1677.13,0.00021643,2]
[374562712,1753355447967,-1026.47,0.00021643,2]
[374562713,1753355447976,-928.5,0.00021643,2]
[374562714,1753355447986,-829.03,0.00021643,2]
[374562715,1753355447997,-460.0,0.00021643,2]
[374562716,1753355448007,-460.0,0.00021643,2]
[374562717,1753355448017,-460.0,0.00021643,2]
[374562718,1753355448026,-521.62,0.00021643,2]
[374562719,1753355448036,-1934.21,0.00021643,2]
[374562720,1753355448046,-460.0,0.00021643,2]
[374562721,1753355448056,-460.0,0.00021643,2]
[374562722,1753355448066,-2270.05,0.00021643,2]
[374562723,1753355448075,-460.0,0.00021643,2]
[374562724,1753355448085,-494.89839363,0.00021643,2]
[374562725,1753355448095,-460.0,0.00021643,2]
[374562726,1753355448106,-460.0,0.00021643,2]
[374562727,1753355448116,-1519.41,0.00021643,2]
[374562728,1753355448126,-460.0,0.00021643,2]
[374562729,1753355448136,-200.0,0.00021658,2]
[374562730,1753355448145,-1222.84980334,0.00021762,5]
[374562731,1753355448156,-260.8,0.0002183,5]
[374562732,1753355448165,-460.0,0.00021917,2]
[374562733,1753355448175,-2974.94,0.00021917,2]
[374562734,1753355448185,-460.0,0.00021917,2]
[374562735,1753355448195,-460.0,0.00021917,2]
[374562736,1753355448205,-838.22,0.00021917,2]
[374562737,1753355448215,-460.0,0.00021917,2]
[374562738,1753355448224,-460.0,0.00021917,2]
[374562739,1753355448234,-460.0,0.00021917,2]
[374562740,1753355448243,-460.0,0.00021917,2]
[374562741,1753355448253,-460.0,0.00021917,2]
[374562742,1753355448263,-460.0,0.00021917,2]
[374562743,1753355448273,-1135.29,0.00021917,2]
[374562744,1753355448282,-2559.0,0.00021917,2]
[374562745,1753355448292,-460.0,0.00021917,2]
[374562746,1753355448301,-460.0,0.00021917,2]
[374562747,1753355448311,-654.47,0.00021917,2]
[374562748,1753355448321,-460.0,0.00021917,2]
[374562749,1753355448331,-764.33,0.00021917,2]
[374562750,1753355448341,-460.0,0.00021917,2]
[374562751,1753355448351,-479.99,0.00021917,2]
[374562752,1753355448361,-801.24,0.00021917,2]
[374562753,1753355448370,-460.0,0.00021917,2]
[374562754,1753355448380,-460.0,0.00021917,2]
[374562755,1753355448389,-460.0,0.00021917,2]
[374562756,1753355448399,-559.24,0.00021917,2]
[374562757,1753355448409,-460.0,0.00021917,2]
[374562758,1753355448419,-460.0,0.00021917,2]
[374562759,1753355448428,-583.1,0.00021917,2]
[374562760,1753355448438,-956.43,0.00021917,2]
[374562761,1753355448448,-536.64,0.00021917,2]
[374562762,1753355448458,-460.0,0.00021917,2]
[374562763,1753355448467,-460.0,0.00021917,2]
[374562764,1753355448477,-460.0,0.00021917,2]
[374562765,1753355448487,-184.61,0.00021917,2]
[374562766,1753355448497,-460.0,0.00021917,2]
[374562767,1753355448508,-460.0,0.00021917,2]
[374562768,1753355448518,-460.0,0.00021917,2]
[374562769,1753355448529,-2105.43,0.00021917,2]
[374562770,1753355448540,-460.0,0.00021917,2]
[374562771,1753355448554,-1677.13,0.00021917,2]
[374562772,1753355448564,-500.0,0.00021917,2]
[374562773,1753355448574,-486.79078975,0.00021917,2]
[374562774,1753355448583,-1026.47,0.00021917,2]
[374562775,1753355448592,-928.5,0.00021917,2]
[374562776,1753355448602,-829.03,0.00021917,2]
[374562777,1753355448613,-460.0,0.00021917,2]
[374562778,1753355448623,-460.0,0.00021917,2]
[374562779,1753355448633,-460.0,0.00021917,2]
[374562780,1753355448643,-1934.21,0.00021917,2]
[374562781,1753355448654,-460.0,0.00021917,2]
[374562782,1753355448664,-376.40490601,0.00021917,2]
[374562783,1753355448674,-2270.05,0.00021917,2]
[374562784,1753355448684,-460.0,0.00021917,2]
[374562785,1753355448694,-460.0,0.00021917,2]
[374562786,1753355448705,-460.0,0.00021917,2]
[374562787,1753355448729,-1519.41,0.00021917,2]
[374562788,1753355448739,-460.0,0.00021917,2]
[374562789,1753355448750,-179.71133149,0.00021918,2]
[374562790,1753355448763,-352.04376743,0.00021961,2]
[374562791,1753355448773,-513.36135234,0.00021961,2]
[374562792,1753355448783,-1222.84980334,0.00021969,6]
[374562793,1753355448795,-43268.94729,0.00022,4]
[374562794,1753355448805,-35830.84,0.00022,2]
[374562795,1753355448815,-163.0,0.00022,2]
[374562796,1753355448826,-500.0,0.0002203,2]
[374562797,1753355448836,-500.0,0.0002216,2]
[374562798,1753355448845,-260.8,0.00022171,5]
[374562799,1753355448856,-1222.84980334,0.00022176,6]
[374562800,1753355448866,-460.0,0.00022191,2]
[374562801,1753355448876,-240.73048314,0.00022191,2]
[374562802,1753355448980,-2734.20951686,0.00022191,2]
[374562803,1753355448992,-460.0,0.00022191,2]
[374562804,1753355449002,-838.22,0.00022191,2]
[374562805,1753355449013,-460.0,0.00022191,2]
[374562806,1753355449022,-460.0,0.00022191,2]
[374562807,1753355449032,-460.0,0.00022191,2]
[374562808,1753355449042,-460.0,0.00022191,2]
[374562809,1753355449051,-460.0,0.00022191,2]
[374562810,1753355449060,-460.0,0.00022191,2]
[374562811,1753355449070,-1135.29,0.00022191,2]
[374562812,1753355449079,-2559.0,0.00022191,2]
[374562813,1753355449088,-460.0,0.00022191,2]
[374562814,1753355449098,-460.0,0.00022191,2]
[374562815,1753355449107,-654.47,0.00022191,2]
[374562816,1753355449117,-460.0,0.00022191,2]
[374562817,1753355449127,-764.33,0.00022191,2]
[374562818,1753355449136,-460.0,0.00022191,2]
[374562819,1753355449147,-479.99,0.00022191,2]
[374562820,1753355449158,-801.24,0.00022191,2]
[374562821,1753355449168,-460.0,0.00022191,2]
[374562822,1753355449177,-460.0,0.00022191,2]
[374562823,1753355449187,-553.41,0.00022191,2]
[374562824,1753355449197,-460.0,0.00022191,2]
[374562825,1753355449207,-583.1,0.00022191,2]
[374562826,1753355449217,-956.43,0.00022191,2]
[374562827,1753355449227,-460.0,0.00022191,2]
[374562828,1753355449237,-460.0,0.00022191,2]
[374562829,1753355449246,-460.0,0.00022191,2]
[374562830,1753355449256,-460.0,0.00022191,2]
[374562831,1753355449265,-460.0,0.00022191,2]
[374562832,1753355449275,-460.0,0.00022191,2]
[374562833,1753355449285,-2105.43,0.00022191,2]
[374562834,1753355449295,-460.0,0.00022191,2]
[374562835,1753355449304,-1677.13,0.00022191,2]
[374562836,1753355449314,-1026.47,0.00022191,2]
[374562837,1753355449323,-928.5,0.00022191,2]
[374562838,1753355449333,-829.03,0.00022191,2]
[374562839,1753355449342,-460.0,0.00022191,2]
[374562840,1753355449352,-460.0,0.00022191,2]
[374562841,1753355449362,-460.0,0.00022191,2]
[374562842,1753355449372,-1934.21,0.00022191,2]
[374562843,1753355449382,-460.0,0.00022191,2]
[374562844,1753355449391,-2270.05,0.00022191,2]
[374562845,1753355449403,-460.0,0.00022191,2]
[374562846,1753355449413,-488.02,0.00022191,2]
[374562847,1753355449423,-460.0,0.00022191,2]
[374562848,1753355449433,-1519.41,0.00022191,2]
[374562849,1753355449442,-460.0,0.00022191,2]
[374562850,1753355449452,-69616.08029489,0.000222,2]
[374562851,1753355449462,-7045.29445359,0.00022215,2]
[374562852,1753355449471,-189.36765105,0.00022352,2]
[374562853,1753355449481,-1222.84980334,0.00022383,7]
[374562854,1753355449491,-460.0,0.00022465,2]
[374562855,1753355449501,-2974.94,0.00022465,2]
[374562856,1753355449511,-225.85,0.00022465,2]
[374562857,1753355449521,-838.22,0.00022465,2]
[374562858,1753355449532,-536.64,0.00022465,2]
[374562859,1753355449542,-460.0,0.00022465,2]
[374562860,1753355449552,-557.76496243,0.00022465,2]
[374562861,1753355449562,-460.0,0.00022465,2]
[374562862,1753355449571,-460.0,0.00022465,2]
[374562863,1753355449581,-1135.29,0.00022465,2]
[374562864,1753355449591,-2559.0,0.00022465,2]
[374562865,1753355449601,-460.0,0.00022465,2]
[374562866,1753355449611,-460.0,0.00022465,2]
[374562867,1753355449620,-654.47,0.00022465,2]
[374562868,1753355449629,-460.0,0.00022465,2]
[374562869,1753355449639,-764.33,0.00022465,2]
[374562870,1753355449648,-460.0,0.00022465,2]
[374562871,1753355449662,-479.99,0.00022465,2]
[374562872,1753355449671,-801.24,0.00022465,2]
[374562873,1753355449681,-460.0,0.00022465,2]
[374562874,1753355449690,-460.0,0.00022465,2]
[374562875,1753355449700,-460.0,0.00022465,2]
[374562876,1753355449709,-583.1,0.00022465,2]
[374562877,1753355449719,-956.43,0.00022465,2]
[374562878,1753355449728,-460.0,0.00022465,2]
[374562879,1753355449738,-460.0,0.00022465,2]
[374562880,1753355449748,-460.0,0.00022465,2]
[374562881,1753355449760,-326.52,0.00022465,2]
[374562882,1753355449770,-460.0,0.00022465,2]
[374562883,1753355449812,-2105.43,0.00022465,2]
[374562884,1753355449822,-164.37,0.00022465,2]
[374562885,1753355449833,-1677.13,0.00022465,2]
[374562886,1753355449843,-1026.47,0.00022465,2]
[374562887,1753355449852,-928.5,0.00022465,2]
[374562888,1753355449861,-829.03,0.00022465,2]
[374562889,1753355449871,-1808.58,0.00022465,2]
[374562890,1753355449881,-460.0,0.00022465,2]
[374562891,1753355449891,-460.0,0.00022465,2]
[374562892,1753355449901,-460.0,0.00022465,2]
[374562893,1753355449913,-1934.21,0.00022465,2]
[374562894,1753355449924,-235.8,0.00022465,2]
[374562895,1753355449933,-462.17,0.00022465,2]
[374562896,1753355449944,-460.0,0.00022465,2]
[374562897,1753355449953,-1519.41,0.00022465,2]
[374562898,1753355449963,-460.0,0.00022465,2]
[374562899,1753355449972,-1101.33,0.000225,7]
[374562900,1753355449981,-151.0,0.000225,9]
[374562901,1753355449991,-159.372972,0.00022505,2]
[374562902,1753355450001,-260.8,0.00022512,5]
[374562903,1753355450011,-1222.84980334,0.0002259,7]
[374562904,1753355450020,-161.140262,0.00022603,2]
[374562905,1753355450030,-474.34331691,0.00022687,2]
[374562906,1753355450039,-501.01581911,0.00022705,2]
[374562907,1753355450048,-501.42269042,0.00022705,2]
[374562908,1753355450058,-521.64,0.00022737,4]
[374562909,1753355450068,-522.42,0.00022737,7]
[374562910,1753355450077,-522.81,0.00022737,4]
[374562911,1753355450086,-460.0,0.00022739,2]
[374562912,1753355450095,-2974.94,0.00022739,2]
[374562913,1753355450104,-838.22,0.00022739,2]
[374562914,1753355450114,-460.0,0.00022739,2]
[374562915,1753355450123,-2559.0,0.00022739,2]
[374562916,1753355450133,-527.2,0.00022739,2]
[374562917,1753355450142,-460.0,0.00022739,2]
[374562918,1753355450151,-654.47,0.00022739,2]
[374562919,1753355450161,-168.05,0.00022739,2]
[374562920,1753355450171,-764.33,0.00022739,2]
[374562921,1753355450180,-460.0,0.00022739,2]
[374562922,1753355450190,-479.99,0.00022739,2]
[374562923,1753355450199,-801.24,0.00022739,2]
[374562924,1753355450208,-460.0,0.00022739,2]
[374562925,1753355450218,-460.0,0.00022739,2]
[374562926,1753355450227,-460.0,0.00022739,2]
[374562927,1753355450237,-583.1,0.00022739,2]
[374562928,1753355450246,-956.43,0.00022739,2]
[374562929,1753355450256,-460.0,0.00022739,2]
[374562930,1753355450268,-460.0,0.00022739,2]
[374562931,1753355450278,-460.0,0.00022739,2]
[374562932,1753355450287,-460.0,0.00022739,2]
[374562933,1753355450297,-2105.43,0.00022739,2]
[374562934,1753355450306,-1677.13,0.00022739,2]
[374562935,1753355450316,-1026.47,0.00022739,2]
[374562936,1753355450325,-928.5,0.00022739,2]
[374562937,1753355450336,-829.03,0.00022739,2]
[374562938,1753355450347,-460.0,0.00022739,2]
[374562939,1753355450357,-460.0,0.00022739,2]
[374562940,1753355450366,-1934.21,0.00022739,2]
[374562941,1753355450376,-460.0,0.00022739,2]
[374562942,1753355450386,-1519.41,0.00022739,2]
[374562943,1753355450395,-12139.58953217,0.00022745,3]
[374562944,1753355450406,-355.88924068,0.00022745,3]
[374562945,1753355450416,-8000.14341592,0.00022745,3]
[374562946,1753355450425,-160.0,0.00022745,3]
[374562947,1753355450435,-587.0,0.00022776,2]
[374562948,1753355450444,-1222.84980334,0.00022797,7]
[374562949,1753355450454,-1000.0,0.000228,2]
[374562950,1753355450463,-352.04376743,0.0002283,2]
[374562951,1753355450473,-521.64,0.00022837,4]
[374562952,1753355450483,-522.42,0.00022837,2]
[374562953,1753355450493,-522.82,0.00022837,4]
[374562954,1753355450502,-11725.23040351,0.00022847,2]
[374562955,1753355450511,-260.8,0.00022853,5]
[374562956,1753355450521,-428.582618,0.0002287,2]
[374562957,1753355450530,-215.0738,0.00022884,2]
[374562958,1753355450540,-3000.0,0.000229,2]
[374562959,1753355450549,-3000.0,0.0002291,2]
[374562960,1753355450558,-3000.0,0.0002292,2]
[374562961,1753355450568,-3000.0,0.0002293,2]
[374562962,1753355450577,-521.64,0.00022937,2]
[374562963,1753355450587,-522.44,0.00022937,7]
[374562964,1753355450596,-3000.0,0.0002294,2]
[374562965,1753355450605,-3000.0,0.0002295,2]
[374562966,1753355450615,-3000.0,0.0002296,2]
[374562967,1753355450624,-3000.0,0.0002297,2]
[374562968,1753355450633,-3000.0,0.0002298,2]
[374562969,1753355450643,-3000.0,0.0002299,2]
[374562970,1753355450653,-1500.0,0.00023,4]
[374562971,1753355450663,-3000.0,0.00023,2]
[374562972,1753355450672,-160.0,0.00023,2]
[374562973,1753355450682,-526.24749348,0.00023,3]
[374562974,1753355450691,-160.0,0.00023,3]
[374562975,1753355450700,-178.0,0.00023,7]
[374562976,1753355450710,-169.0,0.00023,7]
[374562977,1753355450719,-840.23756827,0.00023,3]
[374562978,1753355450728,-1222.84980334,0.00023003,8]
[374562979,1753355450738,-3000.0,0.0002301,2]
[374562980,1753355450747,-246.32556325,0.00023013,2]
[374562981,1753355450760,-2974.94,0.00023013,2]
[374562982,1753355450769,-838.22,0.00023013,2]
[374562983,1753355450779,-460.0,0.00023013,2]
[374562984,1753355450788,-2559.0,0.00023013,2]
[374562985,1753355450799,-460.0,0.00023013,2]
[374562986,1753355450808,-654.47,0.00023013,2]
[374562987,1753355450817,-764.33,0.00023013,2]
[374562988,1753355450826,-225.17,0.00023013,2]
[374562989,1753355450837,-479.99,0.00023013,2]
[374562990,1753355450846,-801.24,0.00023013,2]
[374562991,1753355450857,-269.18,0.00023013,2]
[374562992,1753355450867,-290.1,0.00023013,2]
[374562993,1753355450877,-165.36,0.00023013,2]
[374562994,1753355450887,-583.1,0.00023013,2]
[374562995,1753355450896,-956.43,0.00023013,2]
[374562996,1753355450907,-460.0,0.00023013,2]
[374562997,1753355450916,-460.0,0.00023013,2]
[374562998,1753355450926,-430.98426585,0.00023013,2]
[374562999,1753355450936,-460.0,0.00023013,2]
[374563000,1753355450945,-2105.43,0.00023013,2]
[374563001,1753355450955,-1677.13,0.00023013,2]
[374563002,1753355450965,-1026.47,0.00023013,2]
[374563003,1753355450974,-829.03,0.00023013,2]
[374563004,1753355450985,-460.0,0.00023013,2]
[374563005,1753355450996,-460.0,0.00023013,2]
[374563006,1753355451005,-1934.21,0.00023013,2]
[374563007,1753355451015,-460.0,0.00023013,2]
[374563008,1753355451024,-1519.41,0.00023013,2]
[374563009,1753355451033,-163.0,0.00023014,7]
[374563010,1753355451042,-3000.0,0.0002302,2]
[374563011,1753355451052,-3000.0,0.0002303,2]
[374563012,1753355451062,-3000.0,0.0002304,2]
[374563013,1753355451073,-3000.0,0.0002305,2]
[374563014,1753355451084,-3000.0,0.0002306,2]
[374563015,1753355451093,-3000.0,0.0002307,2]
[374563016,1753355451102,-250.0,0.00023071,2]
[374563017,1753355451112,-3000.0,0.0002308,2]
[374563018,1753355451121,-3000.0,0.0002309,2]
[374563019,1753355451131,-1248.24,0.000231,7]
[374563020,1753355451141,-3000.0,0.000231,2]
[374563021,1753355451150,-3000.0,0.0002311,2]
[374563022,1753355451161,-3000.0,0.0002312,2]
[374563023,1753355451171,-3000.0,0.0002313,2]
[374563024,1753355451180,-3000.0,0.0002314,2]
[374563025,1753355451189,-577.4526085,0.00023144,2]
[374563026,1753355451198,-3000.0,0.0002315,2]
[374563027,1753355451207,-3000.0,0.0002316,2]
[374563028,1753355451217,-3000.0,0.0002317,2]
[374563029,1753355451226,-3000.0,0.0002318,2]
[374563030,1753355451236,-3000.0,0.0002319,2]
[374563031,1753355451245,-260.8,0.00023195,6]
[374563032,1753355451255,-3000.0,0.000232,2]
[374563033,1753355451265,-3000.0,0.0002321,2]
[374563034,1753355451274,-1222.84980334,0.0002321,8]
[374563035,1753355451284,-3000.0,0.0002322,2]
[374563036,1753355451293,-3000.0,0.0002323,2]
[374563037,1753355451303,-3000.0,0.0002324,2]
[374563038,1753355451312,-3000.0,0.0002325,2]
[374563039,1753355451322,-500.0,0.00023256,2]
[374563040,1753355451331,-3000.0,0.0002326,2]
[374563041,1753355451341,-3000.0,0.0002327,2]
[374563042,1753355451350,-3000.0,0.0002328,2]
[374563043,1753355451360,-151.0,0.00023287,7]
[374563044,1753355451370,-2974.94,0.00023287,2]
[374563045,1753355451380,-838.22,0.00023287,2]
[374563046,1753355451389,-460.0,0.00023287,2]
[374563047,1753355451399,-2559.0,0.00023287,2]
[374563048,1753355451411,-154.64,0.00023287,2]
[374563049,1753355451421,-123.17546618,0.00023287,2]
[374563050,1753355451436,-531.29453382,0.00023287,2]
[374563051,1753355451447,-764.33,0.00023287,2]
[374563052,1753355451456,-479.99,0.00023287,2]
[374563053,1753355451466,-801.24,0.00023287,2]
[374563054,1753355451475,-551.05924683,0.00023287,2]
[374563055,1753355451487,-32.04075317,0.00023287,2]
[374563056,1753355451497,-255.66658604,0.00023287,2]
[374563057,1753355451509,-700.76341396,0.00023287,2]
[374563058,1753355451518,-460.0,0.00023287,2]
[374563059,1753355451528,-460.0,0.00023287,2]
[374563060,1753355451538,-460.0,0.00023287,2]
[374563061,1753355451547,-2083.66148738,0.00023287,2]
[374563062,1753355451559,-21.76851262,0.00023287,2]
[374563063,1753355451569,-1677.13,0.00023287,2]
[374563064,1753355451579,-1026.47,0.00023287,2]
[374563065,1753355451589,-829.03,0.00023287,2]
[374563066,1753355451599,-460.0,0.00023287,2]
[374563067,1753355451609,-396.23,0.00023287,2]
[374563068,1753355451619,-1934.21,0.00023287,2]
[374563069,1753355451629,-548.33098236,0.00023287,2]
[374563070,1753355451639,-1519.41,0.00023287,2]
[374563071,1753355451648,-728.23901839,0.0002329,2]
[374563072,1753355451662,-2271.76098161,0.0002329,2]
[374563073,1753355451671,-1186.5,0.000233,2]
[374563074,1753355451681,-155.63,0.000233,5]
[374563075,1753355451691,-3000.0,0.000233,2]
[374563076,1753355451701,-8100.28688713,0.000233,2]
[374563077,1753355451714,-2717.30815322,0.000233,2]
[374563078,1753355451725,-7902.18597065,0.000233,2]
[374563079,1753355451737,-2329.82876048,0.000233,2]
[374563080,1753355451787,-932.89,0.00021369,2]
[374563081,1753355451798,-932.89,0.00021643,2]
[374563082,1753355451808,-932.89,0.00021917,2]
[374563083,1753355451818,-932.89,0.00022191,2]
[374563084,1753355451828,-460.0,0.00022739,2]
[374563085,1753355451838,-2351.46250262,0.000233,2]
[374563086,1753355451849,-3072.59983121,0.000233,2]
[374563087,1753355451860,-304.2614001,0.000233,2]
[374563088,1753355451872,-9052.90649459,0.000233,2]
[374563089,1753355451881,-1000.0,0.000233,2]
[374563090,1753355451891,-337.28632977,0.0002331,2]
[374563091,1753355451905,-715.6763441,0.0002331,2]
[374563092,1753355451918,-1947.03732613,0.0002331,2]
[374563093,1753355451928,-3000.0,0.0002332,2]
[374563094,1753355451938,-180.0,0.00023321,2]
[374563095,1753355451947,-3000.0,0.0002333,2]
[374563096,1753355451957,-3128.698233,0.0002334,2]
[374563097,1753355451967,-180.0,0.00023349,2]
[374563098,1753355451977,-180.0,0.00023358,2]
[374563099,1753355451987,-180.0,0.00023392,2]
[374563100,1753355451997,-1222.84980334,0.00023417,9]
[374563101,1753355452006,-841.0,0.00023426,2]
[374563102,1753355452016,-180.0,0.0002345,2]
[374563103,1753355452025,-260.8,0.00023536,6]
[374563104,1753355452034,-2974.94,0.00023561,2]
[374563105,1753355452044,-838.22,0.00023561,2]
[374563106,1753355452053,-228.32,0.00023561,2]
[374563107,1753355452063,-91.83053013,0.00023561,2]
[374563108,1753355452110,-770.67,0.00023561,2]
[374563109,1753355452323,-932.89,0.00022465,2]
[374563110,1753355452333,-201.81122693,0.00022739,2]
[374563111,1753355452391,-460.0,0.00019178,2]
[374563112,1753355452400,-731.07877307,0.00022739,2]
[374563113,1753355452411,-932.89,0.00023013,2]
[374563114,1753355452420,-178.204927,0.00023144,2]
[374563115,1753355452431,-932.89,0.00023287,2]
[374563116,1753355452440,-764.80244612,0.00023561,2]
[374563117,1753355452452,-931.69702375,0.00023561,2]
[374563118,1753355452462,-145.0513634,0.00023561,2]
[374563119,1753355452474,-509.4186366,0.00023561,2]
[374563120,1753355452483,-764.33,0.00023561,2]
[374563121,1753355452493,-479.99,0.00023561,2]
[374563122,1753355452502,-801.24,0.00023561,2]
[374563123,1753355452512,-583.1,0.00023561,2]
[374563124,1753355452522,-956.43,0.00023561,2]
[374563125,1753355452531,-460.0,0.00023561,2]
[374563126,1753355452540,-137.33317914,0.00023561,2]
[374563127,1753355490121,518.3493997,0.0001811,2]
[374563129,1753355685234,-300.0,0.00019176,2]
[374563130,1753355685766,-500.0,0.00019177,2]
[374563131,1753355685794,-176.32723131,0.00019177,2]
[374563132,1753355685821,-23.67276869,0.00019177,2]
[374563133,1753355791101,159.372972,0.00013699,2]
[374563140,1753356334131,-174.483466,0.00018322,2]
[374563141,1753356334155,-343.23,0.00019168,3]
[374563142,1753356334181,-160.0,0.00019172,2]
[374563143,1753356334207,-300.0,0.00019172,2]
[374563144,1753356334231,-300.0,0.00019172,2]
[374563145,1753356334254,-250.48366901,0.00019172,2]
[374563151,1753356425094,-649.91740104,0.00019171,2]
[374563152,1753356430089,-142.08259896,0.00019171,2]
[374563153,1753356430110,-342.73285446,0.00019172,2]
[374563154,1753356430133,-500.0,0.00019172,2]
[374563155,1753356430155,-500.0,0.00019172,2]
[374563156,1753356430178,-210.79668622,0.00019172,2]
[374563157,1753356430201,-500.0,0.00019172,2]
[374563158,1753356430223,-500.0,0.00019172,2]
[374563159,1753356430248,-445.19039455,0.00019172,2]
[374563160,1753356430269,-500.0,0.00019172,2]
[374563161,1753356430290,-148.2513363,0.00019172,2]
[374563162,1753356437163,-151.18528734,0.00019172,2]
[374563163,1753356437187,-500.0,0.00019172,2]
[374563164,1753356437212,-49.51633099,0.00019172,2]
[374563165,1753356437234,-99.03392993,0.00019172,2]
[374563166,1753356440845,-169.48136937,0.00019172,2]
[374563167,1753356468894,4029.02,0.0001811,2]
[374563176,1753356519084,166.365649,0.0002,120]
[374563226,1753356632232,-172.2740624,0.00018358,2]
[374563230,1753356632242,-370.07238333,0.000189,2]
[374563233,1753356632251,-253.54490273,0.00019078,2]
[374563236,1753356632260,-49.12871154,0.00019177,2]
[374563241,1753356632299,-250.87128846,0.00019177,2]
[374563243,1753356632310,-300.0,0.00019177,2]
[374563246,1753356632322,-1200.0,0.00019177,2]
[374563248,1753356632332,-460.0,0.00019178,2]
[374563250,1753356632341,-263.88491599,0.00019178,2]
[374563252,1753356632354,-196.11508401,0.00019178,2]
[374563254,1753356632364,-460.0,0.00019178,2]
[374563256,1753356632374,-460.0,0.00019178,2]
[374563259,1753356632384,-460.0,0.00019178,2]